fUSD/lending_fUSD_20250823
["ID","MTS","AMOUNT","RATE_DAILY","PERIOD"]
[381004853,1755936650576,-407.9,0.00013698,2]
[381004854,1755936650585,-4368.38,0.00013698,2]
[381004855,1755936650595,-402.30044151,0.00013698,2]
[381004856,1755936650604,-629.28,0.00013698,2]
[381004857,1755936650614,-545.8,0.00013698,2]
[381004858,1755936650624,-400.0,0.00013698,2]
[381004859,1755936650634,-414.58,0.00013698,2]
[381004860,1755936650643,-400.0,0.00013698,2]
[381004861,1755936650653,-400.0,0.00013698,2]
[381004862,1755936650663,-400.0,0.00013698,2]
[381004863,1755936650674,-400.0,0.00013698,2]
[381004864,1755936650684,-400.0,0.00013698,2]
[381004865,1755936650693,-400.0,0.00013698,2]
[381004866,1755936650703,-400.0,0.00013698,2]
[381004867,1755936650712,-400.0,0.00013698,2]
[381004868,1755936650722,-724.92,0.00013698,2]
[381004869,1755936650731,-400.0,0.00013698,2]
[381004870,1755936650741,-500.0,0.00013698,2]
[381004871,1755936650751,-500.0,0.00013698,2]
[381004872,1755936650760,-500.0,0.00013698,2]
[381004873,1755936650770,-417.42,0.00013698,2]
[381004874,1755936650780,-400.0,0.00013698,2]
[381004875,1755936650790,-498.18,0.00013698,2]
[381004876,1755936650799,-500.0,0.00013698,2]
[381004877,1755936650809,-400.0,0.00013698,2]
[381004878,1755936650819,-500.0,0.00013698,2]
[381004879,1755936650828,-403.24,0.00013698,2]
[381004880,1755936650838,-1006.47,0.00013698,2]
[381004881,1755936650848,-876.19,0.00013698,2]
[381004882,1755936650858,-400.0,0.00013698,2]
[381004883,1755936650868,-515.39,0.00013698,2]
[381004884,1755936650878,-520.78,0.00013698,2]
[381004885,1755936650888,-645.76,0.00013698,2]
[381004886,1755936650898,-400.0,0.00013698,2]
[381004887,1755936650907,-400.0,0.00013698,2]
[381004888,1755936650916,-624.83,0.00013698,2]
[381004889,1755936650926,-400.0,0.00013698,2]
[381004890,1755936650935,-151.0,0.00013698,2]
[381004891,1755936650945,-400.0,0.00013698,2]
[381004892,1755936650955,-400.0,0.00013698,2]
[381004893,1755936650964,-400.0,0.00013698,2]
[381004894,1755936650973,-400.0,0.00013698,2]
[381004895,1755936650983,-151.0,0.00013698,2]
[381004896,1755936650992,-155.73895685,0.00013698,2]
[381004897,1755936651004,-151.0,0.00013698,2]
[381004898,1755936651013,-798.59,0.00013698,2]
[381004899,1755936651023,-402.44329039,0.00013698,2]
[381004900,1755936651033,-400.0,0.00013698,2]
[381004901,1755936651043,-400.0,0.00013698,2]
[381004902,1755936651055,-479.51,0.00013698,2]
[381004903,1755936651066,-448.26,0.00013698,2]
[381004904,1755936651077,-400.0,0.00013698,2]
[381004905,1755936651086,-400.0,0.00013698,2]
[381004906,1755936651096,-400.0,0.00013698,2]
[381004907,1755936651106,-400.0,0.00013698,2]
[381004908,1755936651116,-400.0,0.00013698,2]
[381004909,1755936651128,-400.0,0.00013698,2]
[381004910,1755936651138,-401.49321405,0.00013698,2]
[381004911,1755936651147,-400.0,0.00013698,2]
[381004912,1755936651157,-400.0,0.00013698,2]
[381004913,1755936651167,-270.71940941,0.00013698,2]
[381004914,1755936651178,-470.5,0.00013698,2]
[381004915,1755936651187,-400.0,0.00013698,2]
[381004916,1755936651197,-650.84,0.00013698,2]
[381004917,1755936651206,-607.86,0.00013698,2]
[381004918,1755936651216,-464.64,0.00013698,2]
[381004919,1755936651225,-832.97,0.00013698,2]
[381004920,1755936651235,-400.0,0.00013698,2]
[381004921,1755936651244,-400.0,0.00013698,2]
[381004922,1755936651254,-587.27,0.00013698,2]
[381004923,1755936651263,-400.0,0.00013698,2]
[381004924,1755936651273,-400.0,0.00013698,2]
[381004925,1755936651282,-400.0,0.00013698,2]
[381004926,1755936651292,-400.0,0.00013698,2]
[381004927,1755936651301,-400.0,0.00013698,2]
[381004928,1755936651312,-400.0,0.00013698,2]
[381004929,1755936651322,-400.0,0.00013698,2]
[381004930,1755936651331,-576.04,0.00013698,2]
[381004931,1755936651341,-510.51,0.00013698,2]
[381004932,1755936651350,-400.64997255,0.00013698,2]
[381004933,1755936651360,-715.12,0.00013698,2]
[381004934,1755936651369,-400.0,0.00013698,2]
[381004935,1755936651379,-400.0,0.00013698,2]
[381004936,1755936651389,-400.0,0.00013698,2]
[381004937,1755936651398,-400.0,0.00013698,2]
[381004938,1755936651408,-400.0,0.00013698,2]
[381004939,1755936651417,-431.35,0.00013698,2]
[381004940,1755936651428,-401.34180732,0.00013698,2]
[381004941,1755936651438,-400.0,0.00013698,2]
[381004942,1755936651447,-400.0,0.00013698,2]
[381004943,1755936651457,-400.0,0.00013698,2]
[381004944,1755936651940,-1030.77,0.00013698,2]
[381004945,1755936651961,-400.0,0.00013698,2]
[381004946,1755936651972,-400.0,0.00013698,2]
[381004947,1755936651981,-403.40671211,0.00013698,2]
[381004948,1755936651991,-403.42415747,0.00013698,2]
[381004949,1755936652001,-500.0,0.00013698,2]
[381004950,1755936652014,-400.0,0.00013698,2]
[381004951,1755936652024,-500.0,0.00013698,2]
[381004952,1755936652034,-462.21,0.00013698,2]
[381004953,1755936652044,-400.0,0.00013698,2]
[381004954,1755936652054,-733.08,0.00013698,2]
[381004955,1755936652064,-176.8670138,0.00013698,2]
[381004956,1755936652074,-446.67,0.00013698,2]
[381004957,1755936652086,-400.0,0.00013698,2]
[381004958,1755936652096,-581.48,0.00013698,2]
[381004959,1755936652105,-400.0,0.00013698,2]
[381004960,1755936652115,-400.0,0.00013698,2]
[381004961,1755936652124,-550.43,0.00013698,2]
[381004962,1755936652134,-178.38243213,0.00013698,2]
[381004963,1755936652144,-466.53,0.00013698,2]
[381004964,1755936652153,-400.0,0.00013698,2]
[381004965,1755936652163,-514.06,0.00013698,2]
[381004966,1755936652173,-441.68,0.00013698,2]
[381004967,1755936652183,-426.57,0.00013698,2]
[381004968,1755936652193,-400.0,0.00013698,2]
[381004969,1755936652203,-419.09,0.00013698,2]
[381004970,1755936652213,-400.0,0.00013698,2]
[381004971,1755936652223,-713.04,0.00013698,2]
[381004972,1755936652233,-711.18,0.00013698,2]
[381004973,1755936652242,-400.0,0.00013698,2]
[381004974,1755936652252,-400.0,0.00013698,2]
[381004975,1755936652262,-400.0,0.00013698,2]
[381004976,1755936652271,-400.66017617,0.00013698,2]
[381004977,1755936652281,-703.22,0.00013698,2]
[381004978,1755936652289,-400.0,0.00013698,2]
[381004979,1755936652298,-400.0,0.00013698,2]
[381004980,1755936652308,-400.0,0.00013698,2]
[381004981,1755936652318,-671.42,0.00013698,2]
[381004982,1755936652327,-411.96,0.00013698,2]
[381004983,1755936652337,-400.0,0.00013698,2]
[381004984,1755936652347,-690.68,0.00013698,2]
[381004985,1755936652357,-400.0,0.00013698,2]
[381004986,1755936652367,-400.0,0.00013698,2]
[381004987,1755936652376,-402.27864359,0.00013698,2]
[381004988,1755936652385,-832.37,0.00013698,2]
[381004989,1755936652395,-151.0,0.00013698,2]
[381004990,1755936652404,-401.05621539,0.00013698,2]
[381004991,1755936652414,-906.75,0.00013698,2]
[381004992,1755936652424,-401.72930472,0.00013698,2]
[381004993,1755936652433,-661.55,0.00013698,2]
[381004994,1755936652443,-400.0,0.00013698,2]
[381004995,1755936652453,-400.0,0.00013698,2]
[381004996,1755936652463,-400.0,0.00013698,2]
[381004997,1755936652473,-401.62351275,0.00013698,2]
[381004998,1755936652482,-400.76117579,0.00013698,2]
[381004999,1755936652493,-504.23874117,0.00013698,2]
[381005000,1755936652502,-400.0,0.00013698,2]
[381005001,1755936652512,-404.26,0.00013698,2]
[381005002,1755936652521,-653.75,0.00013698,2]
[381005003,1755936652531,-759.25,0.00013698,2]
[381005004,1755936652541,-400.0,0.00013698,2]
[381005005,1755936652550,-668.8,0.00013698,2]
[381005006,1755936652560,-400.0,0.00013698,2]
[381005007,1755936652570,-419.23,0.00013698,2]
[381005008,1755936652580,-400.0,0.00013698,2]
[381005009,1755936652590,-457.32,0.00013698,2]
[381005010,1755936652599,-400.0,0.00013698,2]
[381005011,1755936652609,-400.0,0.00013698,2]
[381005012,1755936652618,-401.62712036,0.00013698,2]
[381005013,1755936652628,-400.46712066,0.00013698,2]
[381005014,1755936652638,-608.09,0.00013698,2]
[381005015,1755936652647,-636.92,0.00013698,2]
[381005016,1755936652657,-400.0,0.00013698,2]
[381005017,1755936652667,-400.0,0.00013698,2]
[381005018,1755936652677,-400.0,0.00013698,2]
[381005019,1755936652687,-400.0,0.00013698,2]
[381005020,1755936652697,-401.01376755,0.00013698,2]
[381005021,1755936652706,-400.0,0.00013698,2]
[381005022,1755936652716,-400.0,0.00013698,2]
[381005023,1755936652725,-407.07,0.00013698,2]
[381005024,1755936652735,-661.96,0.00013698,2]
[381005025,1755936652745,-650.26,0.00013698,2]
[381005026,1755936652754,-400.0,0.00013698,2]
[381005027,1755936652764,-734.92,0.00013698,2]
[381005028,1755936652774,-606.03,0.00013698,2]
[381005029,1755936652784,-798.99,0.00013698,2]
[381005030,1755936652793,-400.0,0.00013698,2]
[381005031,1755936652802,-400.0,0.00013698,2]
[381005032,1755936652812,-742.3,0.00013698,2]
[381005033,1755936652821,-400.0,0.00013698,2]
[381005034,1755936652830,-151.0,0.00013698,2]
[381005035,1755936652840,-151.0,0.00013698,2]
[381005036,1755936652849,-402.36144105,0.00013698,2]
[381005037,1755936652858,-746.48,0.00013698,2]
[381005038,1755936652868,-151.0,0.00013698,2]
[381005039,1755936652878,-151.0,0.00013698,2]
[381005040,1755936652887,-400.0,0.00013698,2]
[381005041,1755936652898,-400.0,0.00013698,2]
[381005042,1755936652908,-400.0,0.00013698,2]
[381005043,1755936652917,-400.0,0.00013698,2]
[381005044,1755936652929,-400.0,0.00013698,2]
[381005045,1755936652938,-400.0,0.00013698,2]
[381005046,1755936652948,-641.16,0.00013698,2]
[381005047,1755936652958,-400.0,0.00013698,2]
[381005048,1755936652968,-526.97,0.00013698,2]
[381005049,1755936652978,-400.0,0.00013698,2]
[381005050,1755936652988,-400.0,0.00013698,2]
[381005051,1755936652997,-402.26166787,0.00013698,2]
[381005052,1755936653012,-400.37744465,0.00013698,2]
[381005053,1755936653022,-400.0,0.00013698,2]
[381005054,1755936653032,-670.05,0.00013698,2]
[381005055,1755936653043,-400.0,0.00013698,2]
[381005056,1755936653052,-467.16,0.00013698,2]
[381005057,1755936653062,-400.0,0.00013698,2]
[381005058,1755936653072,-400.37,0.00013698,2]
[381005059,1755936653085,-400.0,0.00013698,2]
[381005060,1755936653096,-643.4,0.00013698,2]
[381005061,1755936653106,-681.39,0.00013698,2]
[381005062,1755936653117,-400.0,0.00013698,2]
[381005063,1755936653126,-400.0,0.00013698,2]
[381005064,1755936653136,-400.0,0.00013698,2]
[381005065,1755936653146,-400.0,0.00013698,2]
[381005066,1755936653155,-400.0,0.00013698,2]
[381005067,1755936653165,-430.88,0.00013698,2]
[381005068,1755936653177,-400.0,0.00013698,2]
[381005069,1755936653186,-400.0,0.00013698,2]
[381005070,1755936653196,-401.52045555,0.00013698,2]
[381005071,1755936653206,-400.0,0.00013698,2]
[381005072,1755936653216,-400.0,0.00013698,2]
[381005073,1755936653226,-496.57,0.00013698,2]
[381005074,1755936653236,-803.09,0.00013698,2]
[381005075,1755936653246,-400.0,0.00013698,2]
[381005076,1755936653256,-400.0,0.00013698,2]
[381005077,1755936653265,-400.0,0.00013698,2]
[381005078,1755936653275,-809.94,0.00013698,2]
[381005079,1755936653285,-400.0,0.00013698,2]
[381005080,1755936653295,-572.89,0.00013698,2]
[381005081,1755936653304,-401.88642405,0.00013698,2]
[381005082,1755936653314,-400.0,0.00013698,2]
[381005083,1755936653324,-678.15,0.00013698,2]
[381005084,1755936653333,-680.6,0.00013698,2]
[381005085,1755936653343,-416.95,0.00013698,2]
[381005086,1755936653353,-400.0,0.00013698,2]
[381005087,1755936653363,-400.0,0.00013698,2]
[381005088,1755936653372,-532.28,0.00013698,2]
[381005089,1755936653381,-400.0,0.00013698,2]
[381005090,1755936653391,-514.1,0.00013698,2]
[381005091,1755936653401,-400.0,0.00013698,2]
[381005092,1755936653411,-400.25541585,0.00013698,2]
[381005093,1755936653421,-442.62,0.00013698,2]
[381005094,1755936653432,-423.34887375,0.00013698,2]
[381005095,1755936653442,-453.92,0.00013698,2]
[381005096,1755936653452,-502.43,0.00013698,2]
[381005097,1755936653462,-400.0,0.00013698,2]
[381005098,1755936653472,-592.86,0.00013698,2]
[381005099,1755936653482,-400.0,0.00013698,2]
[381005100,1755936653492,-844.34,0.00013698,2]
[381005101,1755936653501,-400.0,0.00013698,2]
[381005102,1755936653511,-400.0,0.00013698,2]
[381005103,1755936653521,-400.0,0.00013698,2]
[381005104,1755936653530,-400.0,0.00013698,2]
[381005105,1755936653540,-151.0,0.00013698,2]
[381005106,1755936653550,-400.0,0.00013698,2]
[381005107,1755936653559,-400.0,0.00013698,2]
[381005108,1755936653569,-151.0,0.00013698,2]
[381005109,1755936653579,-400.0,0.00013698,2]
[381005110,1755936653588,-496.52,0.00013698,2]
[381005111,1755936653598,-401.43504406,0.00013698,2]
[381005112,1755936653608,-652.13,0.00013698,2]
[381005113,1755936653618,-400.94759794,0.00013698,2]
[381005114,1755936653628,-622.58,0.00013698,2]
[381005115,1755936653637,-410.0,0.00013698,2]
[381005116,1755936653647,-414.75,0.00013698,2]
[381005117,1755936653656,-151.0,0.00013698,2]
[381005118,1755936653666,-400.0,0.00013698,2]
[381005119,1755936653677,-400.0,0.00013698,2]
[381005120,1755936653686,-151.0,0.00013698,2]
[381005121,1755936653696,-402.28478799,0.00013698,2]
[381005122,1755936653706,-400.0,0.00013698,2]
[381005123,1755936653715,-611.9,0.00013698,2]
[381005124,1755936653725,-512.66,0.00013698,2]
[381005125,1755936653735,-644.85,0.00013698,2]
[381005126,1755936653743,-401.39751657,0.00013698,2]
[381005127,1755936653754,-617.0,0.00013698,2]
[381005128,1755936653764,-400.0,0.00013698,2]
[381005129,1755936653773,-548.81,0.00013698,2]
[381005130,1755936653782,-476.76,0.00013698,2]
[381005131,1755936653792,-400.0,0.00013698,2]
[381005132,1755936653802,-400.0,0.00013698,2]
[381005133,1755936653811,-400.0,0.00013698,2]
[381005134,1755936653821,-407.79,0.00013698,2]
[381005135,1755936653831,-563.42,0.00013698,2]
[381005136,1755936653841,-400.0,0.00013698,2]
[381005137,1755936653851,-585.87,0.00013698,2]
[381005138,1755936653860,-632.72,0.00013698,2]
[381005139,1755936653870,-400.0,0.00013698,2]
[381005140,1755936653880,-400.0,0.00013698,2]
[381005141,1755936653890,-400.0,0.00013698,2]
[381005142,1755936653900,-400.0,0.00013698,2]
[381005143,1755936653910,-400.0,0.00013698,2]
[381005144,1755936653920,-482.83,0.00013698,2]
[381005145,1755936653932,-400.0,0.00013698,2]
[381005146,1755936653942,-400.0,0.00013698,2]
[381005147,1755936653952,-400.0,0.00013698,2]
[381005148,1755936653962,-685.98,0.00013698,2]
[381005149,1755936653972,-474.97,0.00013698,2]
[381005150,1755936653982,-400.0,0.00013698,2]
[381005151,1755936653992,-400.0,0.00013698,2]
[381005152,1755936654004,-457.81,0.00013698,2]
[381005153,1755936654015,-400.0,0.00013698,2]
[381005154,1755936654025,-479.26,0.00013698,2]
[381005155,1755936654035,-400.0,0.00013698,2]
[381005156,1755936654045,-532.79,0.00013698,2]
[381005157,1755936654054,-400.0,0.00013698,2]
[381005158,1755936654064,-400.0,0.00013698,2]
[381005159,1755936654074,-401.36882483,0.00013698,2]
[381005160,1755936654084,-690.74,0.00013698,2]
[381005161,1755936654094,-400.0,0.00013698,2]
[381005162,1755936654104,-531.65,0.00013698,2]
[381005163,1755936654114,-400.0,0.00013698,2]
[381005164,1755936654123,-400.0,0.00013698,2]
[381005165,1755936654133,-460.0,0.00013698,2]
[381005166,1755936654143,-400.0,0.00013698,2]
[381005167,1755936654153,-400.0,0.00013698,2]
[381005168,1755936654162,-400.0,0.00013698,2]
[381005169,1755936654172,-432.54,0.00013698,2]
[381005170,1755936654182,-407.4,0.00013698,2]
[381005171,1755936654191,-566.69,0.00013698,2]
[381005172,1755936654201,-670.92,0.00013698,2]
[381005173,1755936654210,-400.0,0.00013698,2]
[381005174,1755936654220,-664.79,0.00013698,2]
[381005175,1755936654229,-824.75,0.00013698,2]
[381005176,1755936654238,-612.09,0.00013698,2]
[381005177,1755936654247,-604.42,0.00013698,2]
[381005178,1755936654257,-161.460914,0.00013698,2]
[381005179,1755936654267,-981.14,0.00013698,2]
[381005180,1755936654276,-400.57241706,0.00013698,2]
[381005181,1755936654285,-567.8,0.00013698,2]
[381005182,1755936654295,-400.0,0.00013698,2]
[381005183,1755936654304,-1182.52,0.00013698,2]
[381005184,1755936654314,-400.0,0.00013698,2]
[381005185,1755936654439,-151.0,0.00013698,2]
[381005186,1755936654448,-151.0,0.00013698,2]
[381005187,1755936654458,-400.0,0.00013698,2]
[381005188,1755936654467,-400.0,0.00013698,2]
[381005189,1755936654476,-383.59009912,0.00013698,2]
[381005190,1755936654485,-400.0,0.00013698,2]
[381005191,1755936654495,-400.0,0.00013698,2]
[381005192,1755936654504,-401.16658661,0.00013698,2]
[381005193,1755936654514,-534.57,0.00013698,2]
[381005194,1755936654523,-400.0,0.00013698,2]
[381005195,1755936654533,-400.0,0.00013698,2]
[381005196,1755936654542,-400.0,0.00013698,2]
[381005197,1755936654551,-400.0,0.00013698,2]
[381005198,1755936654560,-400.0,0.00013698,2]
[381005199,1755936654570,-552.6,0.00013698,2]
[381005200,1755936654579,-669.5,0.00013698,2]
[381005201,1755936654588,-409.34,0.00013698,2]
[381005202,1755936654597,-400.0,0.00013698,2]
[381005203,1755936654606,-289.3988642,0.00013698,2]
[381005204,1755936654617,-646.22,0.00013698,2]
[381005205,1755936654627,-400.0,0.00013698,2]
[381005206,1755936654637,-400.23788978,0.00013698,2]
[381005207,1755936654647,-400.0,0.00013698,2]
[381005208,1755936654656,-722.88,0.00013698,2]
[381005209,1755936654665,-580.99,0.00013698,2]
[381005210,1755936654676,-493.79130931,0.00013698,2]
[381005211,1755936654686,-911.18,0.00013698,2]
[381005212,1755936654696,-400.0,0.00013698,2]
[381005213,1755936654706,-818.34,0.00013698,2]
[381005214,1755936654715,-548.49,0.00013698,2]
[381005215,1755936654726,-626.19,0.00013698,2]
[381005216,1755936654735,-400.0,0.00013698,2]
[381005217,1755936654745,-400.0,0.00013698,2]
[381005218,1755936654754,-724.22,0.00013698,2]
[381005219,1755936654763,-462.74497761,0.00013698,2]
[381005220,1755936654772,-502.17,0.00013698,2]
[381005221,1755936654781,-400.0,0.00013698,2]
[381005222,1755936654793,-466.17,0.00013698,2]
[381005223,1755936654802,-401.71424938,0.00013698,2]
[381005224,1755936654812,-558.5,0.00013698,2]
[381005225,1755936654822,-796.87,0.00013698,2]
[381005226,1755936654831,-400.36789971,0.00013698,2]
[381005227,1755936654840,-461.34629585,0.00013698,2]
[381005228,1755936654850,-400.0,0.00013698,2]
[381005229,1755936654859,-401.32068372,0.00013698,2]
[381005230,1755936654870,-400.0,0.00013698,2]
[381005231,1755936654880,-592.95,0.00013698,2]
[381005232,1755936654889,-400.0,0.00013698,2]
[381005233,1755936654899,-400.0,0.00013698,2]
[381005234,1755936654908,-400.0,0.00013698,2]
[381005235,1755936654918,-229.067295,0.00013698,2]
[381005236,1755936654928,-400.0,0.00013698,2]
[381005237,1755936654937,-843.69,0.00013698,2]
[381005238,1755936654946,-402.91320284,0.00013698,2]
[381005239,1755936654956,-400.0,0.00013698,2]
[381005240,1755936654965,-436.99,0.00013698,2]
[381005241,1755936654975,-400.0,0.00013698,2]
[381005242,1755936654984,-732.03,0.00013698,2]
[381005243,1755936654994,-400.0,0.00013698,2]
[381005244,1755936655005,-400.0,0.00013698,2]
[381005245,1755936655016,-400.0,0.00013698,2]
[381005246,1755936655025,-400.0,0.00013698,2]
[381005247,1755936655035,-831.13,0.00013698,2]
[381005248,1755936655044,-636.61,0.00013698,2]
[381005249,1755936655054,-400.0,0.00013698,2]
[381005250,1755936655064,-636.61,0.00013698,2]
[381005251,1755936655073,-491.91,0.00013698,2]
[381005252,1755936655084,-400.0,0.00013698,2]
[381005253,1755936655093,-400.0,0.00013698,2]
[381005254,1755936655103,-400.4930412,0.00013698,2]
[381005255,1755936655112,-400.0,0.00013698,2]
[381005256,1755936655121,-400.0,0.00013698,2]
[381005257,1755936655130,-631.98,0.00013698,2]
[381005258,1755936655140,-402.70807069,0.00013698,2]
[381005259,1755936655149,-400.0,0.00013698,2]
[381005260,1755936655159,-400.0,0.00013698,2]
[381005261,1755936655168,-400.0,0.00013698,2]
[381005262,1755936655180,-400.4286256,0.00013698,2]
[381005263,1755936655189,-571.97,0.00013698,2]
[381005264,1755936655199,-151.0,0.00013698,2]
[381005265,1755936655208,-400.0,0.00013698,2]
[381005266,1755936655218,-151.0,0.00013698,2]
[381005267,1755936655228,-405.58,0.00013698,2]
[381005268,1755936655238,-400.0,0.00013698,2]
[381005269,1755936655249,-711.12,0.00013698,2]
[381005270,1755936655258,-490.75,0.00013698,2]
[381005271,1755936655268,-414.58,0.00013698,2]
[381005272,1755936655278,-1666.5,0.00013698,2]
[381005273,1755936655287,-400.0,0.00013698,2]
[381005274,1755936655297,-400.0,0.00013698,2]
[381005275,1755936655306,-401.95269947,0.00013698,2]
[381005276,1755936655316,-472.23,0.00013698,2]
[381005277,1755936655325,-400.0,0.00013698,2]
[381005278,1755936655334,-400.0,0.00013698,2]
[381005279,1755936655344,-637.12,0.00013698,2]
[381005280,1755936655353,-709.37,0.00013698,2]
[381005281,1755936655362,-198.32504974,0.00013698,2]
[381005282,1755936655371,-400.0,0.00013698,2]
[381005283,1755936655381,-400.0,0.00013698,2]
[381005284,1755936655391,-427.73,0.00013698,2]
[381005285,1755936655400,-569.2,0.00013698,2]
[381005286,1755936655410,-639.13,0.00013698,2]
[381005287,1755936655419,-400.0,0.00013698,2]
[381005288,1755936655431,-427.44,0.00013698,2]
[381005289,1755936655441,-400.0,0.00013698,2]
[381005290,1755936655450,-400.0,0.00013698,2]
[381005291,1755936655459,-480.94,0.00013698,2]
[381005292,1755936655470,-400.0,0.00013698,2]
[381005293,1755936655479,-400.0,0.00013698,2]
[381005294,1755936655489,-400.0,0.00013698,2]
[381005295,1755936655498,-400.0,0.00013698,2]
[381005296,1755936655508,-495.65,0.00013698,2]
[381005297,1755936655517,-400.0,0.00013698,2]
[381005298,1755936655527,-400.0,0.00013698,2]
[381005299,1755936655536,-609.65,0.00013698,2]
[381005300,1755936655545,-400.0,0.00013698,2]
[381005301,1755936655553,-400.0,0.00013698,2]
[381005302,1755936655562,-400.0,0.00013698,2]
[381005303,1755936655572,-400.0,0.00013698,2]
[381005304,1755936655581,-400.0,0.00013698,2]
[381005305,1755936655590,-400.0,0.00013698,2]
[381005306,1755936655599,-664.02,0.00013698,2]
[381005307,1755936655609,-715.63,0.00013698,2]
[381005308,1755936655618,-645.6,0.00013698,2]
[381005309,1755936655627,-616.34,0.00013698,2]
[381005310,1755936655637,-400.0,0.00013698,2]
[381005311,1755936655646,-605.38,0.00013698,2]
[381005312,1755936655656,-539.33,0.00013698,2]
[381005313,1755936655665,-400.0,0.00013698,2]
[381005314,1755936655674,-401.38726836,0.00013698,2]
[381005315,1755936655684,-417.29,0.00013698,2]
[381005316,1755936655694,-400.0,0.00013698,2]
[381005317,1755936655703,-400.0,0.00013698,2]
[381005318,1755936655712,-400.0,0.00013698,2]
[381005319,1755936655721,-547.45,0.00013698,2]
[381005320,1755936655731,-551.43,0.00013698,2]
[381005321,1755936655741,-522.19,0.00013698,2]
[381005322,1755936655751,-400.0,0.00013698,2]
[381005323,1755936655761,-400.0,0.00013698,2]
[381005324,1755936655771,-476.35,0.00013698,2]
[381005325,1755936655780,-976.06,0.00013698,2]
[381005326,1755936655789,-400.0,0.00013698,2]
[381005327,1755936655799,-151.0,0.00013698,2]
[381005328,1755936655808,-400.0,0.00013698,2]
[381005329,1755936655818,-808.53,0.00013698,2]
[381005330,1755936655827,-400.0,0.00013698,2]
[381005331,1755936655836,-400.0,0.00013698,2]
[381005332,1755936655845,-400.0,0.00013698,2]
[381005333,1755936655855,-400.0,0.00013698,2]
[381005334,1755936655864,-400.0,0.00013698,2]
[381005335,1755936655874,-401.75564441,0.00013698,2]
[381005336,1755936655883,-151.0,0.00013698,2]
[381005337,1755936655893,-400.0,0.00013698,2]
[381005338,1755936655903,-151.0,0.00013698,2]
[381005339,1755936655913,-1432.43,0.00013698,2]
[381005340,1755936655922,-400.0,0.00013698,2]
[381005341,1755936655934,-840.67,0.00013698,2]
[381005342,1755936655943,-401.62065444,0.00013698,2]
[381005343,1755936655953,-779.35,0.00013698,2]
[381005344,1755936655963,-500.0,0.00013698,2]
[381005345,1755936655975,-500.0,0.00013698,2]
[381005346,1755936655986,-500.0,0.00013698,2]
[381005347,1755936655995,-528.47367359,0.00013698,2]
[381005348,1755936656008,-400.0,0.00013698,2]
[381005349,1755936656017,-400.0,0.00013698,2]
[381005350,1755936656027,-429.81,0.00013698,2]
[381005351,1755936656036,-445.75,0.00013698,2]
[381005352,1755936656045,-539.49,0.00013698,2]